Cogmind - Beta 10.2 @@@ ROGUE MODE // 2021.05.03 @ 12:58:54 Player: cavemonk Result: Destroyed by DAS Turret with DAS Cannon Performance ------------- Evolutions (1) 500 Regions Visited (5) 1000 Robots Destroyed (81) 405 Value Destroyed (1725) 1725 Prototype IDs (29) 580 Alien Tech Used (0) 0 Bonus (311) 311 TOTAL SCORE: 4521 Bonus ------- High Alert Combat Kills 11 Aligned with FarCom 300 Cogmind --------- Core Integrity 0/400 Matter 224/300 Energy 233/240 System Corruption 1% Temperature Cool (312) Movement Treading (160) Location -9/Exiles Parts ------- > --- POWER (1) -------- Nuclear Core > --- PROPULSION (2) --- Light Treads Light Treads > --- UTILITY (4) ------ Hardened Light Armor Plating Hardened Light Armor Plating Hardened Light Armor Plating > --- WEAPON (2) ------- Improved Assault Rifle Improved Assault Rifle > --- INVENTORY (4) ---- Light Treads Improved Assault Rifle Improved Assault Rifle Peak State ------------ > --- POWER ------------ (None) > --- PROPULSION ------- Light Treads Light Treads > --- UTILITY ---------- Gravity Neutralizing Apparatus Armor Integrity Analyzer Hardened Light Armor Plating Hardened Light Armor Plating > --- WEAPON ----------- Improved Assault Rifle Improved Assault Rifle > --- INVENTORY -------- Nuclear Core Hardened Light Armor Plating AS-neutralizer No. 17b [Rating: 21] Favorites ----------- Power Nuclear Core Engine Ion Engine Power Core Nuclear Core Propulsion Light Treads Treads Light Treads Leg Aluminum Leg Wheel Wheel Utility Large Storage Unit Device Improved Terrain Scanner Storage Large Storage Unit Processor Armor Integrity Analyzer Protection Hardened Light Armor Plating Weapon Autogun Ballistic Gun Autogun Ballistic Cannon Light Cannon Launcher Rocket Launcher Build | -11 -10 -10 -9 -9 -9 ------- Run | Scr Mat Min Mat Min Exi Slots Evolved 2 | . . . 2 . . Power . | . . . . . . Propulsion . | . . . . . . Utility 2 | . . . 2 . . Weapon . | . . . . . . Parts Attached 89 | 3 25 1 35 . 25 Power 4 | . 1 . 2 . 1 Engine 2 | . 1 . 1 . . Core 2 | . . . 1 . 1 Reactor . | . . . . . . Propulsion 28 | 2 13 . 9 . 4 Treads 23 | 1 9 . 9 . 4 Leg . | . . . . . . Wheel 5 | 1 4 . . . . Hover . | . . . . . . Flight . | . . . . . . Utility 23 | 1 5 . 4 . 13 Device 3 | 1 . . . . 2 Storage 8 | . 3 . 2 . 3 Processor 1 | . . . . . 1 Hackware . | . . . . . . Protection 11 | . 2 . 2 . 7 Artifact . | . . . . . . Weapon 34 | . 6 1 20 . 7 Energy Gun . | . . . . . . Energy Cannon . | . . . . . . Ballistic Gun 26 | . 4 1 16 . 5 Ballistic Cannon 1 | . 1 . . . . Launcher 7 | . 1 . 4 . 2 Special Weapon . | . . . . . . Impact Weapon . | . . . . . . Slashing Weapon . | . . . . . . Piercing Weapon . | . . . . . . Special Melee Weapon . | . . . . . . Unidentified Prototypes 3 | . . . 1 . 2 Parts Lost 10 | . . . 2 . 8 Power 2 | . . . 1 . 1 Propulsion 3 | . . . . . 3 Utility 2 | . . . . . 2 Weapon 3 | . . . 1 . 2 Highest Loss Streak 5 | . . . 1 . 5 Average Slot Usage (%) 99 | . 99 100 99 100 96 Engine 6 | . 14 14 2 11 8 Core 5 | . . . 8 . 1 Treads 23 | . 26 28 21 22 21 Storage 28 | . 20 28 33 33 13 Protection 11 | . 6 . 11 11 27 Ballistic Gun 22 | . 26 25 21 22 17 Naked Turns . | . . . . . . Heaviest Build 83 | 11 60 60 83 80 82 Greatest Support 52 | 20 40 40 40 40 52 Greatest Overweight (x) 27 | 3 1 1 27 1 2 Average Overweight (x) 3 | . . 1 6 1 . Largest Inventory Capacity 24 | 6 18 18 24 24 24 Average Capacity 20 | 6 12 18 23 24 12 Most Carried 24 | 6 18 18 24 24 24 Average Carried 19 | 5 11 17 23 24 10 Final Capacity 24 | 6 18 18 24 24 4 Final Carried 24 | 4 18 18 24 24 3 Class Distribution -------------------- 68% | Hauler-Mutant 31% | Mutant Dominant Class ---------------- Mutant | -10/Materials Mutant | -10/Mines Hauler-Mutant | -9/Materials Hauler-Mutant | -9/Mines Mutant | -9/Exiles Resources | -11 -10 -10 -9 -9 -9 ----------- Run | Scr Mat Min Mat Min Exi Matter Collected 2605 | 298 488 194 1141 . 484 Remotely . | . . . . . . Salvage Created 2525 | 156 497 240 1485 . 147 Parts 161 | 9 28 22 99 . 3 Haulers Intercepted 7 | . 1 . 6 . . Recyclers Shooed 4 | 1 2 . 1 . . Parts Field Recycled . | . . . . . . Retrieved Matter . | . . . . . . Parts Self-Destructed . | . . . . . . Prevented . | . . . . . . Kills | -11 -10 -10 -9 -9 -9 ------- Run | Scr Mat Min Mat Min Exi Combat Hostiles Destroyed 65 | . 14 10 33 . 8 Guns 39 | . 12 4 22 . 1 Cannons 2 | . 2 . . . . AOE 24 | . . 6 11 . 7 Classes Destroyed 12 | 2 4 1 4 . 1 Worker 2 | . . . 2 . . Builder 2 | . . 1 1 . . Tunneler 5 | 4 . . 1 . . Hauler 7 | . 1 . 6 . . Recycler 4 | 1 1 1 1 . . Operator 2 | . 2 . . . . Watcher 1 | . . . 1 . . Swarmer 23 | . 6 6 11 . . Grunt 23 | . 8 4 11 . . Duelist 1 | . . . 1 . . Sentry 10 | . . . 10 . . Assembled 7 | . . . . . 7 Best Kill Streak 7 | 3 4 5 4 . 7 Combat Bots Only 7 | . 4 3 4 . 7 Max Kills in Single Turn 4 | 1 1 3 4 . 3 Gunslinging . | . . . . . . Exploded 4 | . . 2 4 . 3 Melee . | . . . . . . Uniques/NPCs Destroyed 1 | . . . . . 1 8R-AWN (-9/Exiles) Combat | -11 -10 -10 -9 -9 -9 -------- Run | Scr Mat Min Mat Min Exi Damage Taken 3982 | . 413 260 1313 . 1996 Core 554 | . 51 56 259 . 188 Absorbed by Shields . | . . . . . . Core Remaining (%) 78 | 100 . 57 . . . Volleys Fired 221 | 17 46 17 104 . 37 Largest 2 | 2 2 2 2 . 2 Hottest 66 | 40 55 46 46 . 66 Shots Fired 425 | 34 92 28 200 . 71 Gun 398 | 34 90 22 192 . 60 Cannon 2 | . 2 . . . . Launcher 25 | . . 6 8 . 11 Special . | . . . . . . Kinetic 400 | 34 92 22 192 . 60 Thermal . | . . . . . . Explosive 25 | . . 6 8 . 11 Electromagnetic . | . . . . . . Robot Hit Streak 21 | 9 20 4 21 . 12 Robot Miss Streak 4 | 3 3 4 2 . 3 Penetration Max . | . . . . . . Secondary Targets 3 | . 2 . 1 . . Max Gunslinging Chain 1 | . 1 . 1 . . Shots Hit Robots 292 | 24 57 14 149 . 48 Core Hits 159 | 6 31 18 76 . 28 Critical Hits 5 | . 1 . 2 . 2 Critical Kills 1 | . . . 1 . . Critical Parts Destroyed 3 | . 1 . 1 . 1 Melee Attacks . | . . . . . . Impact . | . . . . . . Slashing . | . . . . . . Piercing . | . . . . . . Sneak Attacks . | . . . . . . Combat Hostiles . | . . . . . . Follow-up Attacks . | . . . . . . Damage Inflicted 6031 | 279 1046 675 3057 . 974 Guns 4198 | 279 990 171 2184 . 574 Cannons 34 | . 34 . . . . Explosions 1513 | . . 475 638 . 400 Melee . | . . . . . . Ramming 286 | . 22 29 235 . . Kinetic 4232 | 279 1024 171 2184 . 574 Thermal . | . . . . . . Explosive 1513 | . . 475 638 . 400 Electromagnetic . | . . . . . . Impact . | . . . . . . Slashing . | . . . . . . Piercing . | . . . . . . Highest Corruption 2 | . 2 2 1 1 1 Average Corruption 1 | . 2 2 1 1 1 Corruption Purged . | . . . . . . Effects 27 | . 4 9 9 . 5 Message Errors 12 | . 3 3 4 . 2 Energy Discharges 4 | . . 3 1 . . Data Loss (minor) 10 | . 1 3 3 . 3 Targeting Errors 1 | . . . 1 . . Overload Shots . | . . . . . . Overflow Damage 76 | . . 26 16 . 34 Projectiles . | . . . . . . Explosions 71 | . . 26 11 . 34 Melee 5 | . . . 5 . . Knockbacks 3 | . . 1 2 . . Impact 3 | . . 1 2 . . Kinetic . | . . . . . . Secondary . | . . . . . . Self-Inflicted Damage 56 | . . 30 . . 26 Shots 2 | . . 1 . . 1 Rammed 27 | . 3 3 21 . . Targets Rammed 29 | . 3 3 23 . . Kicked . | . . . . . . Crushed 2 | . . . 2 . . Highest Temperature 321 | . 24 4 67 . 321 Average Temperature 74 | . 6 3 20 . 146 Received Heat Transfer 573 | . 129 42 402 . . Siege Activations . | . . . . . . Robots Corrupted . | . . . . . . Combat Hostiles . | . . . . . . Parts Fried . | . . . . . . Impact Corruptions 1 | . . . 1 . . Robots Melted . | . . . . . . Combat Hostiles . | . . . . . . Parts Melted . | . . . . . . Heat Transferred . | . . . . . . Parts Sabotaged . | . . . . . . Parts Stolen . | . . . . . . Parts Stripped . | . . . . . . Power Chain Reactions . | . . . . . . Missiles Intercepted . | . . . . . . Alert | -11 -10 -10 -9 -9 -9 ------- Run | Scr Mat Min Mat Min Exi Peak Influence 530 | 25 244 252 530 206 . Initial 206 | . 16 27 . 206 . Average 120 | 16 74 91 136 206 . Maximum Alert Level 2 | . 1 1 2 1 . Low Security (%) 76 | 100 95 87 71 . . Level 1 10 | . 4 12 10 100 . Level 2 12 | . . . 17 . . Level 3 . | . . . . . . Level 4 . | . . . . . . Level 5 . | . . . . . . High Security . | . . . . . . Max Security . | . . . . . . Squads Dispatched 6 | . 2 . 4 . . Investigation 1 | . . . 1 . . Extermination . | . . . . . . Reinforcement 5 | . 2 . 3 . . Assault . | . . . . . . Garrison . | . . . . . . Intercept . | . . . . . . Construction Impeded . | . . . . . . Haulers Reinforced . | . . . . . . Stealth | -11 -10 -10 -9 -9 -9 --------- Run | Scr Mat Min Mat Min Exi Distress Signals 4 | . 1 . 3 . . Communications Jammed . | . . . . . . Distress Signals . | . . . . . . Times Spotted 135 | . 33 14 56 . 32 Peak Tracking Total 9 | . 5 3 5 . 9 Tactical Retreats 10 | . 1 2 1 . 6 Traps | -11 -10 -10 -9 -9 -9 ------- Run | Scr Mat Min Mat Min Exi Traps Triggered 7 | . 4 . 3 . . Indirectly . | . . . . . . Trap Hack Attempts . | . . . . . . Triggered . | . . . . . . Disarmed . | . . . . . . Reprogrammed 4 | . 4 . . . . Reused . | . . . . . . Traps Extracted . | . . . . . . Installed . | . . . . . . Triggered . | . . . . . . Machines | -11 -10 -10 -9 -9 -9 ---------- Run | Scr Mat Min Mat Min Exi Machines Disabled 8 | . . 2 1 . 5 Max in Single Turn 2 | . . 1 1 . 2 Machines Sabotaged . | . . . . . . Garrisons Compromised . | . . . . . . Overloaded Fab Kills . | . . . . . . Fab Network Shutdowns . | . . . . . . Hacking | -11 -10 -10 -9 -9 -9 --------- Run | Scr Mat Min Mat Min Exi Machines Accessed 19 | . 7 . 11 . 1 Terminals 11 | . 6 . 5 . . Fabricators . | . . . . . . Repair Stations 3 | . 1 . 2 . . Recycling Units 2 | . . . 2 . . Scanalyzers 2 | . . . 2 . . Garrison Access . | . . . . . . Total Hacks 59 | . 21 . 37 . 1 Successful 34 | . 10 . 23 . 1 Failed 24 | . 10 . 14 . . Catastrophic 3 | . . . 3 . . Database Lockouts 1 | . 1 . . . . Manual 25 | . 14 . 10 . 1 Terminals 38 | . 20 . 18 . . Fabricators . | . . . . . . Repair Stations 6 | . 1 . 5 . . Recycling Units 4 | . . . 4 . . Scanalyzers 10 | . . . 10 . . Garrison Access . | . . . . . . Terminal Hacks 13 | . 8 . 4 . 1 Robot Analysis 2 | . 2 . . . . Prototype ID Bank 1 | . 1 . . . . Branch Access Points 1 | . 1 . . . . Terminal Index 1 | . 1 . . . . Unreport Threat 2 | . . . 2 . . Reprogram Traps 1 | . 1 . . . . Hauler Manifests 1 | . . . 1 . . Zone Layout 3 | . 2 . 1 . . EX-Prototype ID Bank 1 | . . . . . 1 Fabricator Hacks . | . . . . . . Repair Station Hacks 3 | . . . 3 . . Scan Component 2 | . . . 2 . . Repair 1 | . . . 1 . . Recycling Unit Hacks 4 | . . . 4 . . Retrieve Matter 2 | . . . 2 . . Retrieve Components 2 | . . . 2 . . Scanalyzer 10 | . . . 10 . . Insert Component 5 | . . . 5 . . Analyze 5 | . . . 5 . . Garrison Access Hacks . | . . . . . . Unauthorized Hacks 4 | . 2 . 2 . . Terminals 4 | . 2 . 2 . . Track 3 | . 2 . 1 . . Assimilate 1 | . . . 1 . . Fabricators . | . . . . . . Repair Stations . | . . . . . . Recycling Units . | . . . . . . Scanalyzers . | . . . . . . Garrison Access . | . . . . . . Data Cores Recovered . | . . . . . . Used . | . . . . . . Hacking Detections 18 | . 7 . 11 . . Full Trace Events 1 | . 1 . . . . Feedback Events . | . . . . . . Feedback Blocked . | . . . . . . Robot Schematics Acquired . | . . . . . . Robots Built . | . . . . . . Matter . | . . . . . . Time . | . . . . . . Total Robot Build Rating . | . . . . . . Part Schematics Acquired 5 | . . . 5 . . Parts Built . | . . . . . . Matter . | . . . . . . Time . | . . . . . . Total Part Build Rating . | . . . . . . Parts Repaired 1 | . . . 1 . . Time 26 | . . . 26 . . Parts Recycled . | . . . . . . Recycled Matter . | . . . . . . Retrieved Matter 60 | . . . 60 . . Retrieved Components 13 | . . . 13 . . Parts Scanalyzed 5 | . . . 5 . . Part Schematics Acquired 5 | . . . 5 . . Parts Damaged . | . . . . . . Bothacking | -11 -10 -10 -9 -9 -9 ------------ Run | Scr Mat Min Mat Min Exi Used RIF Installer . | . . . . . . Robots Hacked . | . . . . . . Non-combat . | . . . . . . Combat . | . . . . . . Robot Hacks Applied . | . . . . . . Relay Couplers Released . | . . . . . . Robots Rewired . | . . . . . . Allies Hacked . | . . . . . . Hacks Repelled . | . . . . . . Allies | -11 -10 -10 -9 -9 -9 -------- Run | Scr Mat Min Mat Min Exi Total Allies 3 | . . 2 . 1 . Largest Group 2 | . . 2 . 1 1 Highest-Rated Group 39 | . . 39 . 31 31 Highest-Rated Ally 31 | . . 31 . 31 31 Total Orders . | . . . . . . Ally Attacks 4 | . . 4 . . . Total Damage 22 | . . 22 . . . Kills . | . . . . . . Allies Corrupted . | . . . . . . Allies Melted . | . . . . . . Intel | -11 -10 -10 -9 -9 -9 ------- Run | Scr Mat Min Mat Min Exi Robot Analysis Total 2 | . 2 . . . . Derelict Logs Recovered 2 | . . 2 . . . Drone Launches . | . . . . . . Drone Recoveries . | . . . . . . Exploration | -11 -10 -10 -9 -9 -9 ------------- Run | Scr Mat Min Mat Min Exi Turns Passed 13753 | 141 2012 1292 8628 123 1557 Spaces Moved 4282 | 45 906 660 1827 69 775 Core 330 | 3 . . 327 . . Treads 3706 | . 702 660 1500 69 775 Legs 22 | 22 . . . . . Wheels 224 | 20 204 . . . . Hover . | . . . . . . Flight . | . . . . . . Fastest Speed 80 | 90 80 180 180 180 160 Average Speed 268 | 112 156 180 405 180 170 Slowest Speed 1400 | 200 180 180 1400 180 200 Overloaded Moves . | . . . . . . Propulsion Burnouts . | . . . . . . Robots Hopped . | . . . . . . Cave-ins Triggered . | . . . . . . Exploration Rate (%) 63 | 2 92 98 94 26 68 Regions Visited 5 Branch Regions 3 Pre-discovered Areas 1 | . . 1 . . . Known Exits Taken 1 | . 1 . . . . Unknown Exits Taken 4 | 1 . 1 1 1 . Scrap Searched 2 | . . 1 . 1 . Spaces Dug 52 | . . 28 24 . . Terrain Destroyed 195 | . . 63 80 . 52 Melee . | . . . . . . Projectile . | . . . . . . AOE 195 | . . 63 80 . 52 Terrain Rammed . | . . . . . . Walls Destroyed . | . . . . . . Machines Disabled . | . . . . . . Actions | -11 -10 -10 -9 -9 -9 --------- Run | Scr Mat Min Mat Min Exi Total 6131 | 105 1413 734 2858 68 953 Wait 1327 | 36 371 52 829 . 39 Move 4277 | 44 905 659 1826 68 775 Hop . | . . . . . . Pick Up 96 | 1 35 1 19 . 40 Fast Attach 32 | 2 8 . 6 . 16 Attach 16 | 1 2 . 7 . 6 Detach 2 | . . . . . 2 Swap 41 | . 15 1 22 . 3 Drop 90 | 4 28 1 22 . 35 Fire 221 | 17 46 17 104 . 37 Melee . | . . . . . . Ram . | . . . . . . Kick . | . . . . . . Crush 29 | . 3 3 23 . . Escape Stasis . | . . . . . . Rewire . | . . . . . . Trap . | . . . . . . Miscellaneous . | . . . . . . Route ------- -11/Scrapyard -10/Materials (discovered 4 exits: *Mat x3 / *Min) -10/Mines (discovered 2 exits: *Mat x2) -9/Materials (discovered 4 exits: [*Mat x3] / [*Min]) -9/Mines (discovered 2 exits: *Exi / [*Zio]) -9/Exiles History --------- Turn | Location | Event 18 | -11/Scrapyard | Discovered new exit (range 3) 142 | -11/Scrapyard | Entered Materials 295 | -10/Materials | Discovered new exit (range 10) 331 | -10/Materials | Build established: Mutant 375 | -10/Materials | Discovered new exit (range 9) 389 | -10/Materials | Discovered new exit (range 14) 787 | -10/Materials | Identified exit to Mines 787 | -10/Materials | Central database locked down 1785 | -10/Materials | Discovered new exit (range 4) 2154 | -10/Materials | Entered Mines 2154 | -10/Mines | Discovered new exit (range 10) 2253 | -10/Mines | Learned location of Mines (-9) 2306 | -10/Mines | Discovered new exit (range 14) 2356 | -10/Mines | Learned Materials emergency access door positions 2794 | -10/Mines | Found a hidden stash of uninstalled traps 3236 | -10/Mines | Joined a pair of Derelicts in attacking an 0b10 outpost 3446 | -10/Mines | Entered Materials 3446 | -9/Materials | Evolved 2 slots: Utility x2 3665 | -9/Materials | Repaired Lgt. Treads 3743 | -9/Materials | Build established: Hauler-Mutant 3954 | -9/Materials | Discovered new exit (range 16) 4390 | -9/Materials | Discovered new exit (range 16) 9358 | -9/Materials | Core integrity fell below 50% 9414 | -9/Materials | Discovered new exit (range 16) 11917 | -9/Materials | Discovered new exit (range 8) 12074 | -9/Materials | Entered Mines 12110 | -9/Mines | Met a Derelict bent on vengeance 12119 | -9/Mines | A Derelict revealed a hidden shortcut to a safe place 12153 | -9/Mines | Received a Rocket Launcher from a helpful Derelict 12158 | -9/Mines | Received a Mining Laser from a helpful Derelict 12190 | -9/Mines | Deemed a non-threat by the Exiles lab entrance 12190 | -9/Mines | Discovered new exit (range 5) 12197 | -9/Mines | Entered Exiles 12197 | -9/Exiles | Accompanied by 1 ally 12242 | -9/Exiles | Met 8R-AWN 12273 | -9/Exiles | Met EX-HEX 12375 | -9/Exiles | Met EX-DEC 12453 | -9/Exiles | Met EX-BIN 12478 | -9/Exiles | Aligned with FarCom system 12480 | -9/Exiles | Given EX-Vault access code 12537 | -9/Exiles | Opened EX-Vault 12577 | -9/Exiles | Warned to stay clear of 0b10 Research branches 13024 | -9/Exiles | Build established: Mutant 13322 | -9/Exiles | Attacked by the Exiles 13372 | -9/Exiles | Core integrity fell below 20% 13393 | -9/Exiles | Destroyed 7 combat bots 13469 | -9/Exiles | Destroyed 8R-AWN 13483 | -9/Exiles | Lost 5 parts (1p2n1u1w) 13489 | -9/Exiles | Found Prototype Device 13489 | -9/Exiles | Identified AS-neutralizer No. 17b 13754 | -9/Exiles | Destroyed by DAS Turret with DAS Cannon Last Messages --------------- 13613_ Acquired Hcp. Matter Pod. 13630_ The unstable cave ceiling collapses. 13646_ Acquired 11 matter. 13658_ Dropped Hcp. Storage Unit. 13659_ Dropped Lrg. Storage Unit. 13664_ Acquired Hrd. Light Armor Plating. 13665_ Dropped Hvy. Assault Rifle. 13678_ Acquired Imp. Assault Rifle. 13679_ Extracted 30 matter. 13682_ Acquired Hrd. Light Armor Plating. 13686_ Acquired Lgt. Treads. 13687_ Dropped Rocket Launcher. 13690_ Acquired Lgt. Treads. 13691_ Extracted 4 matter. 13697_ Dropped Lgt. Treads. 13701_ Acquired Lgt. Treads. 13704_ Dropped Lgt. Treads. 13705_ Acquired Lgt. Treads. 13748_ Hrd. Light Armor Plating destroyed. 13750_ Lgt. Treads destroyed. Map ----- +----------------------------------------------------+ | ???????????????? #????????????????????##"###??# | | ???????????????# #????????????????????? ??????# | | ??????????????## ##???????????????????????????# | | ????????????### ???????????????????????????## | | ?????????????"#""###?????????????????????????#" | | ######?????###!!! "#?????????????????????????#" | | #""#????# # "#?????????????????????????#" | | ?????#" "#?????????????????????????#" | | #????## " #????????????######???????#" | | #####" "#??????????? """#???????#" | | ## ""#??????????#"" """#???????## | | #"" ###??????????#"" #????????# | | ??# = ######???????#"" #????????#" | | ??#### #" #???????#"" "#????????#" | | ?????### #?#####?? ""#????????#" | | #######" # #? ###?" ""????????##" | | !!""""" ### #?# #????????##"" | | ! "### ##!# # ### ###?######"" | | ! "#?# [[ ! # X# #"###""""""" | | ! ##?## = ! ! """""" " "" | | !""""""###??##" [!!] "" """ " | | #########?????## [[! " " | | ???????????????### [ = | | ????????????????###### | | ?????????????????????# | | ?????????????????????## @ | | ??????????????????????## | | ???????????????????????## """""" | | ???????????????????????# ######" | | ???????????????????????#" ""##????## | | ???????????????????????#" """##??????? | | ??????????????????????#""" """##???????? | | ??????????????????????#""" ""#????????? | | ??????????????????????#"" ########??# | | ??????????????????????#""" ## #### | | ??????????????????????#"" t """ | | ??????????????????????##"" | | ???????????????????????#""" | | ???????????????????????## | | ????????????????????????#" " | | ????????????????????????#"" " ""## | | ????????????????????????#"" ""#### | | ?????????????????????????" """"##??# | | ?????????????????????????""" """#??## | | ?????????????????????????# ""##??#! | | ?????????????????????????#"" """##???#" | | ???????????????????????????""" ##????#" | | ????????????????????????????"""" ##?????#!!" | | ?????????????????????????????# #??????#### | | ??????????????????????????????#### #??????????? | +----------------------------------------------------+ Best States ------------- Heat Dissipation 28 Energy Generation 14 Energy Capacity 250 Matter Stores 300 Matter Capacity 300 Sight Range 16 Terrain Scan Range 16 Terrain Scan Density 10 Armor Coverage 600 Evasion (%) 42 Armor Integrity Analysis 33 Recoil Reduction 2 Item Schematics ----------------- Hvy. Assault Rifle | -9/Materials | Scanalyzed Imp. Assault Rifle | -9/Materials | Scanalyzed Hacking Suite | -9/Materials | Scanalyzed Armor Integrity Analyzer | -9/Materials | Scanalyzed Nuclear Core | -9/Materials | Scanalyzed Robot Schematics ------------------ None Fabricated ------------ Nothing Alien Tech Used ----------------- None Achievements -------------- None Challenges ------------ None Game ------ Seed CooledMyomerRigger Manual? 0 Play Time 00:58:58 Cumulative 220.1 hours Start 2021.05.03 @ 11:51:52 End 2021.05.03 @ 12:58:54 Sessions 1 Manual Loads 0 Difficulty Rogue Special Mode None Game No. 138 Rogue 138 Adventurer 0 Explorer 0 Win Type - Total 4 Types 4/0/0/0/0/0/0/0/0 Lore% 47 Gallery% 69 Achievement% 54 Wizard Run 0 Options --------- ASCII 0 Keyboard 0 Movement Numpad Keybinds 0 Fullscreen 2 Font 18/TerminusBold Map View 76x50 Tactical HUD 1 Map Filters NONE Filters NONE Steam 1 RUN: 75ac32e8-c76b-4f91-8d45-709ca7f3351a